bitfinex/quotes_ETHUSD_20250219
["timestamp","ask_amount","ask_price","bid_price","bid_amount"]
[1739951368741,3.67675,2719.8,2719.2,8.60061835]
[1739951369426,0.4706614,2719.9,2719.2,8.60061835]
[1739951369627,0.50763711,2719.9,2719.2,8.60063835]
[1739951369834,3.67675,2719.8,2719.2,4.92310835]
[1739951370046,4.56585011,2719.8,2719.2,4.92310835]
[1739951370213,0.88910011,2719.8,2719.3,3.6774]
[1739951370557,0.4706614,2719.9,2719.3,3.6774]
[1739951371058,3.67698,2719.7,2719.1,0.73722328]
[1739951371613,3.67714,2719.6,2719.1,0.73722328]
[1739951372544,3.67698,2719.7,2719.1,0.73722328]
[1739951372760,3.67698,2719.7,2719.1,4.41490328]
[1739951372939,4.125608,2719.6,2719.1,0.73722328]
[1739951373553,3.67723,2719.5,2719.1,0.73722328]
[1739951373923,0.448568,2719.6,2719.1,0.73722328]
[1739951374104,4.125678,2719.6,2719.1,0.73722328]
[1739951374505,0.448568,2719.6,2719.1,0.73722328]
[1739951374739,3.67705,2719.6,2719.1,0.73722328]
[1739951374939,3.67692,2719.7,2719.1,0.73722328]
[1739951375153,0.8087,2719.8,2719.1,0.73722328]
[1739951375353,0.8087,2719.8,2719.4,3.67719]
[1739951375517,0.19883403,2720.0,2719.6,3.67698]
[1739951375716,3.67666,2719.9,2719.3,8.60047835]
[1739951376009,3.67674,2719.8,2719.3,4.92310835]
[1739951377120,0.03697571,2719.7,2719.3,4.92310835]
[1739951377329,3.67674,2719.8,2719.2,3.67744]
[1739951377511,7.35361,2719.8,2719.2,3.67744]
[1739951377707,3.67689,2719.7,2719.2,3.67744]
[1739951377912,3.67689,2719.7,2719.1,1.56082328]
[1739951378211,3.67689,2719.7,2719.1,5.23848328]
[1739951378453,0.7855,2719.6,2719.2,0.2309837]
[1739951379040,4.46264,2719.6,2719.2,0.2309837]
[1739951379356,3.67722,2719.5,2719.2,0.2309837]
[1739951379539,7.35472,2719.4,2719.2,0.2309837]
[1739951379742,3.67741,2719.3,2719.2,0.2309837]
[1739951379948,4.50161,2719.3,2719.2,0.2309837]
[1739951380642,3.67769,2719.1,2718.8,0.74172624]
[1739951381846,4.50167,2719.3,2718.8,0.74172624]
[1739951382044,8.1792,2719.3,2718.8,0.74172624]
[1739951382244,8.17919,2719.3,2718.8,0.74172624]
[1739951382433,3.67757,2719.2,2718.8,0.74172624]
[1739951383118,3.67772,2719.1,2718.8,0.74172624]
[1739951384766,5.857579,2719.3,2718.8,0.74172624]
[1739951384978,3.67769,2719.1,2718.8,0.74172624]
[1739951385181,3.67758,2719.2,2718.8,0.74172624]
[1739951385473,5.857539,2719.3,2718.8,0.74172624]
[1739951385649,9.535049,2719.3,2718.8,0.74172624]
[1739951385844,5.857539,2719.3,2718.8,0.74172624]
[1739951386044,3.67735,2719.4,2718.9,0.7702]
[1739951386247,5.38,2719.5,2719.0,3.67778]
[1739951386658,5.38,2719.5,2718.9,0.7702]
[1739951387182,9.05719,2719.5,2718.9,4.44807]
[1739951387672,5.38,2719.5,2718.9,4.44807]
[1739951387839,0.7585,2719.3,2718.8,0.74172624]
[1739951388184,4.43596,2719.3,2718.8,0.74172624]
[1739951388388,0.7585,2719.3,2718.8,4.41979624]
[1739951388550,4.43592,2719.3,2718.8,4.41979624]
[1739951388884,4.43592,2719.3,2718.9,0.23169544]
[1739951389255,0.7585,2719.3,2718.9,0.23169544]
[1739951390087,0.7585,2719.3,2718.9,3.67794]
[1739951390291,4.43599,2719.3,2718.8,0.74172624]
[1739951390585,0.7585,2719.3,2718.8,0.74172624]
[1739951390791,4.43592,2719.3,2718.8,4.41981624]
[1739951390994,0.7585,2719.3,2718.8,4.41981624]
[1739951391367,3.67755,2719.2,2718.8,0.74172624]
[1739951392093,0.7585,2719.3,2718.8,0.74172624]
[1739951392259,3.67755,2719.2,2718.8,0.74172624]
[1739951392659,7.35523,2719.2,2718.8,0.74172624]
[1739951392860,8.166553,2719.2,2718.6,3.67828]
[1739951393170,7.35518,2719.2,2718.7,0.73046131]
[1739951393693,3.67755,2719.2,2718.7,0.73046131]
[1739951393856,3.67772,2719.1,2718.7,0.73046131]
[1739951394058,3.67717,2719.5,2718.8,0.7821]
[1739951394368,3.67749,2719.3,2718.8,0.7821]
[1739951394880,3.67749,2719.3,2718.9,0.23211632]
[1739951395087,3.67776,2719.1,2718.9,0.23211632]
[1739951395289,3.67782,2719.0,2718.9,0.23211632]
[1739951396094,3.67776,2719.1,2718.8,0.23211632]
[1739951396956,3.67776,2719.1,2718.8,0.50684733]
[1739951397191,7.35556,2719.1,2718.9,0.23211632]
[1739951397397,0.7626,2719.2,2718.9,0.23211632]
[1739951397868,3.67719,2719.5,2718.9,0.23211632]
[1739951398190,3.67732,2719.4,2718.9,3.67795]
[1739951398692,3.67744,2719.3,2718.9,0.27473101]
[1739951399263,3.67763,2719.2,2718.9,0.27473101]
[1739951399486,3.67779,2719.1,2718.9,0.27473101]
[1739951399995,3.67779,2719.1,2719.0,0.23250792]
[1739951400763,4.54736571,2719.1,2719.0,0.23250792]
[1739951401201,4.51039,2719.1,2719.0,0.23250792]
[1739951401589,4.51039,2719.1,2718.8,0.50742728]
[1739951401905,4.51037,2719.1,2718.8,0.50742728]
[1739951402465,8.18814,2719.1,2718.8,0.50742728]
[1739951402664,4.51037,2719.1,2718.8,0.50742728]
[1739951402968,4.51037,2719.1,2718.8,0.23250792]
[1739951403226,3.67795,2718.9,2718.8,0.23250792]
[1739951403524,4.51037,2719.1,2718.8,0.23250792]
[1739951403899,3.67785,2719.0,2718.9,0.23250792]
[1739951404213,4.5103,2719.1,2718.9,0.23250792]
[1739951404826,3.67782,2719.0,2718.9,0.23250792]
[1739951404989,4.5103,2719.1,2718.9,0.23250792]
[1739951405189,3.67747,2719.3,2718.9,0.23250792]
[1739951405402,8.14727,2719.3,2718.9,0.23250792]
[1739951405600,3.67762,2719.2,2718.7,4.40462612]
[1739951405823,3.67762,2719.2,2718.7,0.72652612]
[1739951406223,3.6777,2719.1,2718.7,0.72652612]
[1739951406434,3.6777,2719.1,2718.8,0.27504166]
[1739951406732,3.67757,2719.2,2718.8,0.27504166]
[1739951406936,3.67772,2719.1,2718.8,0.27504166]
[1739951407106,7.35554,2719.1,2718.8,0.27504166]
[1739951407429,3.67772,2719.1,2718.8,0.27504166]
[1739951407803,3.67772,2719.1,2718.7,0.72652612]
[1739951408324,3.71487571,2719.0,2718.7,0.72652612]
[1739951408530,3.71487571,2719.0,2718.8,0.2327483]
[1739951409832,3.6779,2719.0,2718.8,0.2327483]
[1739951410214,3.6779,2719.0,2718.9,0.2327483]
[1739951411815,3.6779,2719.0,2718.7,0.72652612]
[1739951412638,1.607027,2719.3,2718.7,4.40464612]
[1739951412938,5.284537,2719.3,2718.7,4.40464612]
[1739951413617,3.67756,2719.2,2718.8,0.50814744]
[1739951413806,5.284537,2719.3,2718.8,0.50814744]
[1739951414008,8.962027,2719.3,2718.8,0.50814744]
[1739951414206,5.284517,2719.3,2718.8,0.50814744]
[1739951414406,8.962037,2719.3,2718.8,0.50814744]
[1739951414715,5.284517,2719.3,2718.8,0.50814744]
[1739951414941,5.284517,2719.3,2718.9,0.27529021]
[1739951415242,0.5788554,2719.2,2718.9,0.50814744]
[1739951415446,3.67769,2719.1,2718.9,0.50814744]
[1739951415649,4.2564354,2719.2,2718.9,0.50814744]
[1739951416104,3.67768,2719.1,2718.9,0.50814744]
[1739951416300,3.67768,2719.1,2718.9,0.23285723]
[1739951416541,0.5788554,2719.2,2718.9,0.23285723]
[1739951416738,0.5788554,2719.2,2718.7,4.40463612]
[1739951416739,5.284517,2719.3,2718.7,4.40467612]
[1739951416956,5.284517,2719.3,2718.7,0.72652612]
[1739951417138,5.284517,2719.3,2718.8,3.67807]
[1739951417338,5.284457,2719.3,2718.8,3.67807]
[1739951417676,5.38,2719.4,2718.9,0.7909]
[1739951417807,0.7761,2719.8,2719.4,3.67727]
[1739951418010,3.87538403,2720.0,2719.7,3.67684]
[1739951418011,0.19883403,2720.0,2719.7,3.67684]
[1739951418238,0.19883403,2720.0,2719.8,3.67664]
[1739951418673,0.19883403,2720.0,2719.9,3.6766]
[1739951418817,0.19883403,2720.0,2719.9,5.05226122]
[1739951419023,0.19883403,2720.0,2719.9,8.05226122]
[1739951419237,0.19883403,2720.0,2719.9,8.52279342]
[1739951419634,0.19883403,2720.0,2719.9,8.79791393]
[1739951420155,0.19883403,2720.0,2719.9,5.70040647]
[1739951421561,0.19883403,2720.0,2719.9,5.42528596]
[1739951422526,0.19883403,2720.0,2719.9,5.46204659]
[1739951422725,0.19883403,2720.0,2719.9,5.97528596]
[1739951423823,0.19883403,2720.0,2719.9,10.89839431]
[1739951424243,0.19883403,2720.0,2719.9,11.17160816]
[1739951425241,0.19883403,2720.0,2719.9,14.17160816]
[1739951425462,0.00379783,2720.6,2720.5,3.67579]
[1739951425777,0.00379783,2720.6,2720.5,9.96449835]
[1739951426140,0.00379783,2720.6,2720.5,9.41449835]
[1739951426780,0.00379783,2720.6,2720.5,8.59889835]
[1739951427545,0.00379783,2720.6,2720.5,4.92310835]
[1739951427749,0.00379783,2720.6,2720.5,8.63565263]
[1739951427976,0.00379783,2720.6,2720.5,8.59889835]
[1739951429870,0.00379783,2720.6,2720.5,3.67579]
[1739951431079,0.00379783,2720.6,2720.5,4.51144163]
[1739951431737,0.00379783,2720.6,2720.5,4.47469]
[1739951431938,0.00379783,2720.6,2720.5,5.02469]
[1739951432148,0.00379783,2720.6,2720.5,5.75127278]
[1739951435885,0.00379783,2720.6,2720.5,10.67438113]
[1739951436233,0.04,2721.3,2720.8,0.8148]
[1739951436575,0.04,2721.3,2721.2,6.92591022]
[1739951436771,0.794,2722.4,2721.3,0.8148]
[1739951437070,0.794,2722.4,2722.1,3.67363]
[1739951437246,0.11415789,2722.7,2722.1,8.59673835]
[1739951437443,0.8144,2722.4,2721.7,4.47122]
[1739951437766,3.67345,2722.3,2721.6,4.92310835]
[1739951437971,3.674,2721.9,2721.1,5.22543403]
[1739951438170,0.8144,2721.7,2721.1,4.42833403]
[1739951438355,0.8144,2721.7,2721.1,0.75338403]
[1739951439038,4.48858,2721.7,2720.9,4.92310835]
[1739951439251,4.48858,2721.7,2720.9,8.59835835]
[1739951439437,3.67432,2721.6,2720.9,8.59835835]
[1739951439773,4.52735,2721.6,2721.0,0.74417576]
[1739951439931,0.85303,2721.6,2721.0,0.74417576]
[1739951440137,0.85303,2721.6,2721.0,4.41928576]
[1739951440434,3.67444,2721.5,2720.9,4.92310835]
[1739951440978,3.67471,2721.3,2720.9,4.92310835]
[1739951441136,3.67458,2721.4,2720.9,4.92310835]
[1739951441333,4.21232457,2721.5,2720.9,4.92310835]
[1739951442489,3.67458,2721.4,2720.9,4.92310835]
[1739951442650,3.67458,2721.4,2720.8,1.54918626]
[1739951442856,3.71155571,2721.4,2720.8,0.75208626]
[1739951443155,0.765,2721.1,2720.8,0.75208626]
[1739951444656,0.8119,2721.5,2720.8,0.75208626]
[1739951445171,3.67471,2721.3,2720.8,0.75208626]
[1739951445371,3.67467,2721.4,2720.8,0.75208626]
[1739951445536,0.448657,2721.3,2720.8,0.75208626]
[1739951445739,3.67492,2721.2,2720.8,0.75208626]
[1739951446279,4.123387,2721.3,2720.8,0.75208626]
[1739951446491,0.448657,2721.3,2720.8,0.75208626]
[1739951446693,4.48645,2721.5,2720.8,4.42745626]
[1739951446837,0.8119,2721.5,2720.8,4.42745626]
[1739951447042,3.67466,2721.4,2720.8,4.42745626]
[1739951447276,0.8119,2721.5,2720.9,3.67521]
[1739951447455,0.8119,2721.5,2720.8,4.42745626]
[1739951447783,0.8119,2721.5,2721.0,3.67506]
[1739951448294,0.8119,2721.5,2721.1,3.67497]
[1739951448480,4.82125,2721.8,2721.2,3.67483]
[1739951448867,8.4954,2721.8,2721.2,3.67483]
[1739951449073,0.84954,2721.7,2721.2,3.67483]
[1739951449745,4.52371,2721.7,2721.2,3.67483]
[1739951449946,4.52371,2721.7,2720.9,0.7951]
[1739951449947,0.03697571,2721.6,2720.9,0.7951]
[1739951450286,3.67473,2721.3,2720.8,0.75208626]
[1739951450592,3.67473,2721.3,2720.6,8.59867835]
[1739951450593,0.8005,2721.1,2720.6,8.59867835]
[1739951450797,4.47548,2721.1,2720.6,8.59867835]
[1739951450948,0.8005,2721.1,2720.7,3.67549]
[1739951451148,0.8005,2721.1,2720.6,8.59867835]
[1739951451349,4.923023,2721.1,2720.7,0.72803214]
[1739951451782,3.6752,2721.0,2720.6,4.92310835]
[1739951451973,4.923023,2721.1,2720.6,4.92310835]
[1739951452498,0.03697571,2721.0,2720.6,4.92310835]
[1739951452652,4.923023,2721.1,2720.6,4.92310835]
[1739951453592,0.03697571,2721.0,2720.5,0.73598797]
[1739951453787,4.923023,2721.1,2720.5,4.41176797]
[1739951453965,1.248023,2721.1,2720.6,3.67552]
[1739951454667,0.8005,2721.1,2720.6,3.67552]
[1739951455371,4.4755,2721.1,2720.5,0.73598797]
[1739951455587,4.51247571,2721.1,2720.5,4.41173797]
[1739951455889,4.4755,2721.1,2720.6,3.67564]
[1739951456084,0.8005,2721.1,2720.7,3.67544]
[1739951456774,0.8005,2721.1,2720.8,3.67535]
[1739951456976,0.8005,2721.1,2720.6,6.67556]
[1739951457156,0.8005,2721.1,2720.6,10.35112]
[1739951457485,0.8005,2721.1,2720.6,6.67556]
[1739951458192,0.8005,2721.1,2720.6,10.3511]
[1739951458392,0.8005,2721.1,2720.6,6.67554]
[1739951458885,0.8005,2721.1,2720.7,0.7694]
[1739951459085,4.4298,2721.4,2720.8,3.67535]
[1739951459291,3.67473,2721.3,2720.7,4.44487]
[1739951459648,3.67473,2721.3,2720.7,3.67547]
[1739951459785,5.57894402,2721.4,2720.8,3.67538]
[1739951459961,3.67474,2721.3,2720.8,3.67538]
[1739951460163,8.2749084,2721.3,2720.6,10.35118]
[1739951460361,0.9253484,2721.3,2720.8,3.67534]
[1739951460557,0.7552,2721.4,2721.2,3.67481]
[1739951460893,5.38,2721.6,2721.2,3.67481]
[1739951461393,5.38,2721.6,2721.0,4.48382]
[1739951461693,9.05434,2721.6,2721.0,4.48382]
[1739951461998,0.8014,2721.3,2720.8,0.73498373]
[1739951462199,0.8014,2721.3,2720.8,4.41035373]
[1739951463299,4.96439128,2721.3,2720.7,3.67551]
[1739951463461,1.28967128,2721.3,2720.6,6.67559]
[1739951463664,4.44772,2721.0,2720.6,3.0]
[1739951463891,0.03697571,2720.9,2720.6,3.0]
[1739951464321,4.44772,2721.0,2720.6,3.0]
[1739951464608,1.83219259,2721.0,2720.6,3.0]
[1739951464790,0.7726,2721.0,2720.6,3.0]
[1739951465302,0.7726,2721.0,2720.6,6.67555]
[1739951466699,0.7726,2721.0,2720.7,3.67544]
[1739951467001,0.8068,2721.2,2720.6,6.67555]
[1739951467223,4.48165,2721.2,2720.6,3.0]
[1739951467432,1.67125713,2721.2,2720.7,3.67548]
[1739951468809,5.34611713,2721.2,2720.7,3.67548]
[1739951469001,1.67125713,2721.2,2720.8,3.67538]
[1739951469322,3.67465,2721.4,2721.0,3.67505]
[1739951469323,0.7808,2721.4,2721.0,3.67505]
[1739951469523,0.7808,2721.4,2720.8,7.35064]
[1739951470025,0.7808,2721.4,2721.0,3.67511]
[1739951470423,0.7808,2721.4,2720.8,3.67526]
[1739951471126,0.7808,2721.4,2721.0,3.6751]
[1739951471429,2.431764,2721.4,2721.0,3.6751]
[1739951471724,0.7808,2721.4,2721.0,3.6751]
[1739951472118,4.45545,2721.4,2720.8,7.35057]
[1739951472327,4.45545,2721.4,2720.8,3.67526]
[1739951472625,3.67479,2721.3,2720.8,3.67526]
[1739951472944,3.67479,2721.3,2720.8,3.67536]
[1739951473146,3.67479,2721.3,2720.8,4.40902852]
[1739951473641,7.34962,2721.3,2720.8,0.73366852]
[1739951473841,5.03145902,2721.3,2720.8,0.73366852]
[1739951474044,3.67486,2721.2,2720.8,0.73366852]
[1739951474403,3.67486,2721.2,2720.6,3.8088]
[1739951474630,0.8177,2720.9,2720.6,3.0]
[1739951476047,0.8177,2720.9,2720.6,3.74994935]
[1739951476419,0.8177,2720.9,2720.6,3.0]
[1739951477949,4.49301,2720.9,2720.6,3.0]
[1739951478332,3.67539,2720.8,2720.6,3.0]
[1739951478867,3.67552,2720.7,2720.6,3.0]
[1739951479374,4.45292,2720.7,2720.6,3.0]
[1739951479866,4.48989571,2720.7,2720.6,3.0]
[1739951481368,7.48989571,2720.7,2720.6,3.0]
[1739951481569,8.9317326,2720.7,2720.6,3.0]
[1739951481867,8.89475689,2720.7,2720.6,3.0]
[1739951487684,5.21923689,2720.7,2720.6,3.0]
[1739951488014,0.7774,2720.7,2720.6,3.0]
[1739951488415,4.45292,2720.7,2720.6,3.0]
[1739951488918,0.7774,2720.7,2720.6,3.0]
[1739951489683,5.38,2721.0,2720.6,3.0]
[1739951489684,0.7826,2721.0,2720.6,3.0]
[1739951489879,0.8225,2721.2,2720.7,3.67544]
[1739951490133,4.49735,2721.2,2720.7,3.67544]
[1739951490485,0.8225,2721.2,2720.7,3.67544]
[1739951491089,0.8225,2721.2,2720.8,3.67533]
[1739951491428,7.34937,2721.4,2720.7,3.67544]
[1739951491616,3.67468,2721.4,2720.7,3.67544]
[1739951491822,3.67485,2721.2,2720.7,3.67544]
[1739951492127,3.67485,2721.2,2720.6,4.50778845]
[1739951492332,0.03697571,2721.1,2720.6,4.50778845]
[1739951492541,3.67485,2721.2,2720.7,3.67547]
[1739951492725,3.67509,2721.1,2720.6,4.50778845]
[1739951493033,0.8136,2721.0,2720.6,3.73308845]
[1739951493213,0.85057571,2721.0,2720.6,3.73308845]
[1739951493414,3.67526,2720.9,2720.6,3.0]
[1739951493823,3.67539,2720.8,2720.6,3.0]
[1739951493992,4.53248828,2720.8,2720.6,3.0]
[1739951494341,4.48942,2720.7,2720.6,3.0]
[1739951495240,8.38,2721.3,2720.6,3.0]
[1739951495241,3.8278,2721.1,2720.6,3.0]
[1739951495401,6.2078,2721.3,2720.7,3.67548]
[1739951495609,9.88263,2721.3,2720.7,3.67548]
[1739951495794,9.88253,2721.3,2720.7,3.67544]
[1739951496189,9.88253,2721.3,2720.8,3.67537]
[1739951496384,6.2078,2721.3,2720.8,3.67537]
[1739951496617,6.2078,2721.3,2720.7,3.67544]
[1739951497188,6.2078,2721.3,2720.6,6.67556]
[1739951497517,11.41440302,2721.3,2720.6,6.67556]
[1739951497727,11.41441302,2721.3,2720.8,3.67534]
[1739951497918,7.73967302,2721.3,2720.6,6.67555]
[1739951498119,3.71190571,2721.2,2720.7,4.41453528]
[1739951498318,9.03444302,2721.3,2720.7,4.41450528]
[1739951499116,0.03697571,2721.2,2720.6,3.0]
[1739951499322,0.7872,2720.9,2720.6,3.0]
[1739951499725,4.46246,2720.9,2720.6,3.0]
[1739951500648,3.67552,2720.7,2720.6,3.0]
[1739951501718,3.67552,2720.8,2720.6,3.0]
[1739951502316,3.67552,2720.7,2720.6,3.0]
[1739951503150,3.71249571,2720.7,2720.6,3.0]
[1739951503520,4.53000428,2720.7,2720.6,3.0]
[1739951504122,4.49302857,2720.7,2720.6,3.0]
[1739951504521,0.81750857,2720.7,2720.6,3.0]
[1739951504906,4.49302857,2720.7,2720.6,3.0]
[1739951507562,0.81750857,2720.7,2720.6,3.0]
[1739951507864,9.05539,2720.8,2720.6,3.0]
[1739951508810,3.67552,2720.7,2720.6,3.0]
[1739951509359,3.71249571,2720.7,2720.6,3.0]
[1739951509654,3.67552,2720.7,2720.6,3.0]
[1739951510071,3.71249571,2720.7,2720.6,3.0]
[1739951510222,5.3116313,2720.7,2720.6,3.0]
[1739951510433,6.0872313,2720.7,2720.6,3.0]
[1739951510760,9.0872313,2720.7,2720.6,3.0]
[1739951510965,9.05025559,2720.7,2720.6,3.0]
[1739951516071,14.43025559,2720.7,2720.6,3.0]
[1739951522680,14.62236622,2720.7,2720.6,3.0]
[1739951523676,14.43025559,2720.7,2720.6,3.0]
[1739951530677,14.67236115,2720.7,2720.6,3.0]
[1739951530827,15.22236115,2720.7,2720.6,3.0]
[1739951531449,14.67236115,2720.7,2720.6,3.0]
[1739951531983,14.48025559,2720.7,2720.6,3.0]
[1739951532532,14.67236531,2720.7,2720.6,3.0]
[1739951538970,15.22236531,2720.7,2720.6,3.0]
[1739951540843,14.67236531,2720.7,2720.6,3.0]
[1739951541377,14.67236531,2720.7,2720.6,3.8071]
[1739951541378,10.70465559,2720.7,2720.6,3.8071]
[1739951541562,10.70465559,2720.7,2720.6,3.0]
[1739951541873,13.70465559,2720.7,2720.6,3.0]
[1739951542476,13.65465559,2720.7,2720.6,3.0]
[1739951545059,9.97913559,2720.7,2720.6,3.0]
[1739951545385,3.67539,2720.8,2720.6,3.7851]
[1739951546484,3.67552,2720.7,2720.6,3.7851]
[1739951548286,3.67544,2720.8,2720.6,3.7851]
[1739951549089,3.71241571,2720.8,2720.6,3.7851]
[1739951549446,6.11157022,2720.9,2720.6,3.7851]
[1739951549671,0.0069467,2721.0,2720.7,0.8043]
[1739951549950,0.0069467,2721.0,2720.9,4.47955]
[1739951550762,0.0069467,2721.0,2720.9,0.8043]
[1739951551498,0.0069467,2721.0,2720.9,4.47955]
[1739951551951,0.0069467,2721.0,2720.9,0.8043]
[1739951555584,0.0069467,2721.0,2720.6,3.0]
[1739951555585,3.6820567,2721.0,2720.7,0.7879]
[1739951555811,3.67552,2720.7,2720.6,3.0]
[1739951555966,3.67538,2720.8,2720.6,3.0]
[1739951556975,3.67548,2720.8,2720.6,3.0]
[1739951557504,2.43627022,2720.9,2720.6,3.0]
[1739951557713,6.11155022,2720.9,2720.6,3.0]
[1739951559106,3.67528,2720.9,2720.6,3.0]
[1739951559306,3.67528,2720.9,2720.7,0.7775]
[1739951559607,0.0069467,2721.0,2720.7,0.7775]
[1739951560684,3.71906241,2721.0,2720.7,0.7775]
[1739951561212,3.6820867,2721.0,2720.7,0.7775]
[1739951561417,0.03697571,2720.9,2720.7,0.7775]
[1739951561801,3.6820867,2721.0,2720.7,0.7775]
[1739951562507,0.0069467,2721.0,2720.7,0.7775]
[1739951563089,0.0069467,2721.0,2720.9,0.8157]
[1739951565589,0.0069467,2721.0,2720.8,3.67538]
[1739951565784,3.6820967,2721.0,2720.6,3.0]
[1739951566026,2.47324593,2720.9,2720.6,3.0]
[1739951566236,3.67552,2720.7,2720.6,3.0]
[1739951566407,6.71249571,2720.7,2720.6,3.0]
[1739951566732,6.67552,2720.7,2720.6,3.0]
[1739951570734,6.71249571,2720.7,2720.6,3.0]
[1739951570942,3.0,2720.7,2720.6,3.0]
[1739951571141,6.67552,2720.7,2720.6,3.0]
[1739951571526,6.71249571,2720.7,2720.6,3.0]
[1739951571848,8.59446673,2720.7,2720.6,3.0]
[1739951572063,8.55749102,2720.7,2720.6,3.0]
[1739951572206,9.36619102,2720.7,2720.6,3.0]
[1739951572429,9.41619102,2720.7,2720.6,3.0]
[1739951572932,9.60829919,2720.7,2720.6,3.0]
[1739951573245,8.60749102,2720.7,2720.6,3.0]
[1739951575089,9.37939102,2720.7,2720.6,3.0]
[1739951575586,9.57150391,2720.7,2720.6,3.0]
[1739951575962,9.57150391,2720.7,2720.6,1.19217416]
[1739951576175,3.0,2720.4,2719.5,1.55470832]
[1739951576395,3.6767,2719.9,2719.5,0.8198]
[1739951576563,0.03697571,2719.9,2719.5,0.8198]
[1739951576768,3.67688,2719.7,2719.5,0.8198]
[1739951576963,3.67683,2719.8,2719.5,0.8198]
[1739951577750,0.03697571,2719.9,2719.5,0.8198]
[1739951577950,3.71365571,2719.9,2719.5,0.8198]
[1739951578472,3.67676,2719.8,2719.5,0.8198]
[1739951578782,0.03697571,2719.7,2719.5,0.8198]
[1739951578985,3.67708,2719.6,2719.1,0.7809]
[1739951579157,0.84007571,2719.5,2719.1,0.7809]
[1739951579362,4.19916723,2719.6,2719.1,0.7809]
[1739951579862,7.87627723,2719.6,2719.1,0.7809]
[1739951580063,4.19916723,2719.6,2719.1,0.7809]
[1739951580960,4.23614294,2719.6,2719.1,0.7809]
[1739951581651,3.67708,2719.6,2719.1,0.7809]
[1739951582087,3.71405571,2719.6,2719.1,0.7809]
[1739951582251,3.67708,2719.6,2719.1,0.7809]
[1739951582586,5.38,2720.0,2719.4,0.8161]
[1739951582793,3.67712,2719.6,2719.4,0.8161]
[1739951582987,0.03697571,2719.5,2719.0,3.67781]
[1739951583349,3.71414571,2719.5,2718.9,0.8161]
[1739951583689,3.71414571,2719.5,2718.9,4.49405]
[1739951584192,3.67735,2719.4,2718.9,4.49405]
[1739951584348,0.03697571,2719.3,2718.9,0.8161]
[1739951584990,3.71438571,2719.3,2718.9,0.8161]
[1739951585462,0.03697571,2719.3,2718.9,0.8161]
[1739951585656,7.49061,2719.6,2718.9,5.01610884]
[1739951586007,3.6773,2719.4,2718.9,0.8161]
[1739951586485,6.67701,2719.6,2718.9,0.8161]
[1739951586486,3.67701,2719.6,2718.9,4.49395]
[1739951586688,3.67739,2719.4,2718.9,0.8161]
[1739951586913,3.67703,2719.6,2718.9,4.49403]
[1739951587050,3.67703,2719.6,2718.9,4.49396]
[1739951587252,5.38,2719.7,2719.2,4.43151]
[1739951587685,5.38,2719.7,2719.2,0.754]
[1739951587893,3.67725,2719.5,2719.0,0.754]
[1739951588195,3.67723,2719.5,2719.0,0.754]
[1739951588612,3.67749,2719.3,2719.0,0.754]
[1739951588794,4.412962,2719.3,2719.0,0.754]
[1739951589132,3.67749,2719.3,2719.0,0.754]
[1739951589935,3.67702,2719.6,2719.0,4.43172]
[1739951590295,3.67705,2719.6,2719.0,4.43172]
[1739951590498,9.0569,2719.7,2719.0,4.43172]
[1739951590706,9.0569,2719.7,2719.3,0.8087]
[1739951591344,5.38,2719.7,2719.3,0.8087]
[1739951591543,9.05688,2719.7,2719.3,0.8087]
[1739951591979,3.67642,2720.1,2719.6,0.7923]
[1739951592273,3.67697,2719.7,2719.2,0.8172]
[1739951592426,3.67723,2719.5,2719.2,0.8172]
[1739951592628,3.67723,2719.5,2718.8,0.8172]
[1739951592827,3.67723,2719.5,2718.8,4.49516]
[1739951593067,3.67729,2719.4,2718.8,4.49516]
[1739951593234,3.67723,2719.5,2718.8,4.49516]
[1739951593422,3.67723,2719.5,2718.9,3.6779]
[1739951593622,5.05996402,2719.7,2719.2,0.7536]
[1739951593825,0.50472362,2719.6,2719.2,0.7536]
[1739951594160,4.18173362,2719.6,2719.2,0.7536]
[1739951594663,3.67723,2719.5,2719.2,0.7536]
[1739951595255,0.03697571,2719.4,2719.2,0.7536]
[1739951596738,0.03697571,2719.4,2718.9,3.67795]
[1739951596739,3.67763,2719.2,2718.8,0.7813]
[1739951596939,0.03697571,2719.1,2718.8,0.7813]
[1739951597144,3.67763,2719.2,2718.8,0.7813]
[1739951598282,0.40839628,2719.3,2718.8,0.7813]
[1739951598434,4.04886057,2719.3,2718.8,0.7813]
[1739951598780,3.67756,2719.2,2718.8,0.7813]
[1739951598951,0.03697571,2719.1,2718.8,0.7813]
[1739951599284,4.08638563,2719.1,2718.8,0.7813]
[1739951599432,3.67795,2719.0,2718.4,0.8073]
[1739951599638,4.08638563,2719.1,2718.4,5.23571705]
[1739951600076,4.08638563,2719.1,2718.4,1.55721705]
[1739951600285,4.08638563,2719.1,2718.4,5.23580705]
[1739951600578,0.40863856,2719.0,2718.4,1.55721705]
[1739951600755,3.67797,2718.9,2718.4,0.8073]
[1739951601939,3.71506571,2718.8,2718.4,0.8073]
[1739951602978,3.67833,2718.7,2718.4,0.8073]
[1739951604583,3.678,2718.9,2718.4,0.8073]
[1739951604765,0.49144386,2718.9,2718.4,0.8073]
[1739951604966,3.67818,2718.8,2718.4,0.8073]
[1739951605167,3.6784,2718.6,2718.4,0.8073]
[1739951605369,3.71537571,2718.6,2718.4,0.8073]
[1739951605579,3.71537571,2718.6,2718.1,0.8193]
[1739951605770,3.67861,2718.5,2718.1,0.8193]
[1739951606083,0.03697571,2718.4,2718.1,0.8193]
[1739951606487,3.67861,2718.5,2718.1,0.8193]
[1739951606691,4.04993757,2718.6,2718.1,4.4983]
[1739951607044,3.67858,2718.5,2718.1,0.8193]
[1739951607376,0.37153757,2718.6,2718.1,0.8193]
[1739951607543,0.37153757,2718.6,2718.1,8.17716]
[1739951607757,0.37153757,2718.6,2718.2,3.67882]